{"text_format":"1","workbook":"xlsx","n_sheets":2,"sheets":["Modulo","data.choferes.transp"],"not_rendered":{"charts":0,"images":2,"macros":0,"external_links":0,"defined_names":3,"comments":0,"pivot_tables":0},"unopened":[],"bounds":{"document_bytes":16777216,"sheet_cells":100000,"rows_first":2000,"rows_last":500,"rows_between":2000,"halvings":0,"cell_chars":16384,"cell_head_chars":4096},"cells_cut":0,"cells_raw":0,"read":"whole","date_system":"1900"}

{"sheet":"Modulo","index":0,"n_rows":12,"n_cols":6,"rows_kept":12,"cut":false,"hidden":false,"merged":[]}
[]
[]
[]
[]
[]
[]
[null,"ESTADO","Local",null,"CLASE TRANSPORTE",{"$f":"VLOOKUP(NM.NUM.TRANSP,TB.TRANSPORTES[],6,FALSE)","v":"ALQUILADO"}]
[null,null,null,null,"EMPRESA",{"$f":"VLOOKUP(NM.NUM.TRANSP,TB.TRANSPORTES[],5,FALSE)","v":"Telsuprema"}]
[null,"NUM.TRANS","A14",null,"TIPO TRANSPORTE",{"$f":"VLOOKUP(NM.NUM.TRANSP,TB.TRANSPORTES[],2,FALSE)","v":"Camión"}]
[null,null,null,null,"PLACA",{"$f":"VLOOKUP(NM.NUM.TRANSP,TB.TRANSPORTES[],3,FALSE)","v":"GBN-2864"}]
[null,"CHOFER","Jimenez Jose",null,"CAPACIDAD",{"$f":"VLOOKUP(NM.NUM.TRANSP,TB.TRANSPORTES[],4,FALSE)","v":8}]
[null,null,null,null,"CHOFER ASIG.",{"$f":"VLOOKUP(NM.NUM.TRANSP,TB.TRANSPORTES[],7,FALSE)","v":"Rodriguez Roberto"}]

{"sheet":"data.choferes.transp","index":1,"n_rows":74,"n_cols":19,"rows_kept":74,"cut":false,"hidden":false,"merged":[[2,11,2,18],[2,1,2,5]]}
[null,"TB.CHOFERES",null,null,null,null,null,null,null,null,null,"TB.TRANSPORTES"]
[null,"nm.choferes",null,null,null,null,null,null,null,null,null,"nm.num.tr"]
[null,"REGISTRO DE CHOFERES",null,null,null,null,null,null,null,null,null,"REGISTRO DE  TRANSPORTE"]
[null,1,2,3,4,5,null,null,null,null,null,1,2,3,4,5,6,7,8]
[null,"CHOFERES","CEDULA","EMPRESA","CTD","TRANSP ASIGNADO",null,null,null,null,null,"# TR.","TIPO","PLACA","CAPACIDAD","CAS","TRANSP","CHOFER ASIGNADO","CTD"]
[null,"Abad Washington","0914162946","Telsuprema",{"$f":"COUNTIF($D$5:D6,D6)","v":1},"A3",null,null,null,null,null,"BC12","Camión","GSL-7197",10,"B.Central","EL ROSADO","Parraga Ivan",{"$f":"COUNTIF($P$5:P6,P6)","v":1}]
[null,"Alban José","0916143803","CD.251",{"$f":"COUNTIF($D$5:D7,D7)","v":1},"CB56",null,null,null,null,null,"BC93","Camión","GSJ-6247",8,"B.Central","EL ROSADO","Jama Ismael",{"$f":"COUNTIF($P$5:P7,P7)","v":2}]
[null,"Alcivar Oscar","1311363095","Telsuprema",{"$f":"COUNTIF($D$5:D8,D8)","v":2},"A13",null,null,null,null,null,"BC94","Camión","GSL-7074",6,"B.Central","EL ROSADO","Chiquito Pablo",{"$f":"COUNTIF($P$5:P8,P8)","v":3}]
[null,"Alvarado Willian","0926559527","Telsuprema",{"$f":"COUNTIF($D$5:D9,D9)","v":3},"A7",null,null,null,null,null,"BC95","Camión","GRZ-3011",10,"B.Central","EL ROSADO","Tapia Telmo",{"$f":"COUNTIF($P$5:P9,P9)","v":4}]
[null,"Avila Oscar","0915808034","CD.251",{"$f":"COUNTIF($D$5:D10,D10)","v":2},"CB51",null,null,null,null,null,"BC96","Camión","GRU-0904",10,"B.Central","EL ROSADO","Cordova Jose",{"$f":"COUNTIF($P$5:P10,P10)","v":5}]
[null,"Bajana Franklin","0940490402","CD.251",{"$f":"COUNTIF($D$5:D11,D11)","v":3},"CM62",null,null,null,null,null,"BC97","Camión","GSI-2521",8,"B.Central","EL ROSADO","Guerrero Xavier",{"$f":"COUNTIF($P$5:P11,P11)","v":6}]
[null,"Baque Milton","1308070976","CD.251",{"$f":"COUNTIF($D$5:D12,D12)","v":4},"CM59",null,null,null,null,null,"BC98","Camión","GSI-5903",8,"B.Central","EL ROSADO","Vargas Duber",{"$f":"COUNTIF($P$5:P12,P12)","v":7}]
[null,"Baque Wilton","0917099574","CD.251",{"$f":"COUNTIF($D$5:D13,D13)","v":5},"CM33",null,null,null,null,null,"BC99","Camión","GSJ-2470",8,"B.Central","EL ROSADO","Landivar Roca",{"$f":"COUNTIF($P$5:P13,P13)","v":8}]
[null,"Basurto Joel","0929269470","Telsuprema",{"$f":"COUNTIF($D$5:D14,D14)","v":4},"A6",null,null,null,null,null,"CB28","Cabezal","GRM-0968",18,"CD.251","EL ROSADO","Lindao Edison",{"$f":"COUNTIF($P$5:P14,P14)","v":1}]
[null,"Bazurto Javier","1310158371","Telsuprema",{"$f":"COUNTIF($D$5:D15,D15)","v":5},"A9",null,null,null,null,null,"CB31","Cabezal","GRZ-1785",18,"CD.251","EL ROSADO","Zambrano William",{"$f":"COUNTIF($P$5:P15,P15)","v":2}]
[null,"Bravo Manuel","1716081573","Systa",{"$f":"COUNTIF($D$5:D16,D16)","v":1},"S13",null,null,null,null,null,"CB34","Cabezal","GSB-8499",18,"CD.251","EL ROSADO","Narváez Juan",{"$f":"COUNTIF($P$5:P16,P16)","v":3}]
[null,"Caiza Freddy","1713898169","Systa",{"$f":"COUNTIF($D$5:D17,D17)","v":2},"S14",null,null,null,null,null,"CB36","Cabezal","GSC-6716",18,"CD.251","EL ROSADO","Yagual Jorge",{"$f":"COUNTIF($P$5:P17,P17)","v":4}]
[null,"Carbo Omar","1204028318","Telsuprema",{"$f":"COUNTIF($D$5:D18,D18)","v":6},"A8",null,null,null,null,null,"CB37","Cabezal","GSC-6715",18,"CD.251","EL ROSADO","Vera José",{"$f":"COUNTIF($P$5:P18,P18)","v":5}]
[null,"Chiquito Pablo","0914419015","B.Central",{"$f":"COUNTIF($D$5:D19,D19)","v":1},"BC94",null,null,null,null,null,"CB39","Cabezal","GSE-8352",18,"CD.251","EL ROSADO","Velez Angel",{"$f":"COUNTIF($P$5:P19,P19)","v":6}]
[null,"Cordova Jose","0909030819","B.Central",{"$f":"COUNTIF($D$5:D20,D20)","v":2},"BC96",null,null,null,null,null,"CB41","Cabezal","GSG-6019",18,"CD.251","EL ROSADO","Nunez John",{"$f":"COUNTIF($P$5:P20,P20)","v":7}]
[null,"Cuascota Juan","1714768643","Systa",{"$f":"COUNTIF($D$5:D21,D21)","v":3},"S7",null,null,null,null,null,"CB46","Cabezal","GSJ-7183",18,"CD.251","EL ROSADO","Sánchez Orley",{"$f":"COUNTIF($P$5:P21,P21)","v":8}]
[null,"Cumbajin Bolivar","1713322285","Systa",{"$f":"COUNTIF($D$5:D22,D22)","v":4},"S12",null,null,null,null,null,"CB51","Cabezal","GSN-1384",18,"CD.251","EL ROSADO","Avila Oscar",{"$f":"COUNTIF($P$5:P22,P22)","v":9}]
[null,"Encarnacion Chavez","0800974123","Tracarsa",{"$f":"COUNTIF($D$5:D23,D23)","v":1},"T2",null,null,null,null,null,"CB56","Cabezal","GSO-3778",18,"CD.251","EL ROSADO","Alban José",{"$f":"COUNTIF($P$5:P23,P23)","v":10}]
[null,"Figueroa Pascual","1305672287","CD.251",{"$f":"COUNTIF($D$5:D24,D24)","v":6},"CM56",null,null,null,null,null,"CB59","Cabezal","GSX-2613",18,"CD.251","EL ROSADO","Lindao Héctor",{"$f":"COUNTIF($P$5:P24,P24)","v":11}]
[null,"Fuentes José","0916111586","CD.251",{"$f":"COUNTIF($D$5:D25,D25)","v":7},"CM49",null,null,null,null,null,"CM33","Camión","GRY-8905",10,"CD.251","EL ROSADO","Baque Wilton",{"$f":"COUNTIF($P$5:P25,P25)","v":12}]
[null,"Granda Luis","0911847671","Telsuprema",{"$f":"COUNTIF($D$5:D26,D26)","v":7},"A4",null,null,null,null,null,"CM37","Camión","GSC-1959",1,"CD.251","EL ROSADO","Villavicencio Enrico",{"$f":"COUNTIF($P$5:P26,P26)","v":13}]
[null,"Guerrero Xavier","0909324188","B.Central",{"$f":"COUNTIF($D$5:D27,D27)","v":3},"BC97",null,null,null,null,null,"CM42","Camión","GSI-4024",8,"CD.251","EL ROSADO","Mieles Gilberto",{"$f":"COUNTIF($P$5:P27,P27)","v":14}]
[null,"Guerron Luis","0401022934","Systa",{"$f":"COUNTIF($D$5:D28,D28)","v":5},"S5",null,null,null,null,null,"CM46","Camión","GSJ-3582",8,"CD.251","EL ROSADO","Sacta Juan",{"$f":"COUNTIF($P$5:P28,P28)","v":15}]
[null,"Gutierrez Pedro","1305708404","CD.251",{"$f":"COUNTIF($D$5:D29,D29)","v":8},"CM47",null,null,null,null,null,"CM47","Camión","GSJ-5999",6,"CD.251","EL ROSADO","Gutierrez Pedro",{"$f":"COUNTIF($P$5:P29,P29)","v":16}]
[null,"Jama Ismael","0917646523","B.Central",{"$f":"COUNTIF($D$5:D30,D30)","v":4},"BC93",null,null,null,null,null,"CM49","Camión","GSJ-5959",6,"CD.251","EL ROSADO","Fuentes José",{"$f":"COUNTIF($P$5:P30,P30)","v":17}]
[null,"Jaramillo Hernán","1103915151","Telsuprema",{"$f":"COUNTIF($D$5:D31,D31)","v":8},"A16",null,null,null,null,null,"CM56","Camión","GSM-5405",6,"CD.251","EL ROSADO","Figueroa Pascual",{"$f":"COUNTIF($P$5:P31,P31)","v":18}]
[null,"Jimenez Jose","0400940433","Systa",{"$f":"COUNTIF($D$5:D32,D32)","v":6},"S9",null,null,null,null,null,"CM59","Camión","GSO-5557",8,"CD.251","EL ROSADO","Baque Milton",{"$f":"COUNTIF($P$5:P32,P32)","v":19}]
[null,"Joel ","0929269470","Telsuprema",{"$f":"COUNTIF($D$5:D33,D33)","v":9},"A2",null,null,null,null,null,"CM60","Camión","GSO-5558",8,"CD.251","EL ROSADO","Navarro Carlos",{"$f":"COUNTIF($P$5:P33,P33)","v":20}]
[null,"Landivar Roca","0907743926","B.Central",{"$f":"COUNTIF($D$5:D34,D34)","v":5},"BC99",null,null,null,null,null,"CM62","Camión","GSX-4174",12,"CD.251","EL ROSADO","Bajana Franklin",{"$f":"COUNTIF($P$5:P34,P34)","v":21}]
[null,"Lindao Edison","0911475994","CD.251",{"$f":"COUNTIF($D$5:D35,D35)","v":9},"CB28",null,null,null,null,null,"S1","Cabezal","PUD-0098",18,"Systa","ALQUILADO","Oscar Roman",{"$f":"COUNTIF($P$5:P35,P35)","v":1}]
[null,"Lindao Héctor","0913435012","CD.251",{"$f":"COUNTIF($D$5:D36,D36)","v":10},"CB59",null,null,null,null,null,"S10","Cabezal","CAA-1068",18,"Systa","ALQUILADO","Pineida Jairo",{"$f":"COUNTIF($P$5:P36,P36)","v":2}]
[null,"Llanos Carlos","0911566693","Telsuprema",{"$f":"COUNTIF($D$5:D37,D37)","v":10},"A17",null,null,null,null,null,"S11","Cabezal","CAA-1465",18,"Systa","ALQUILADO","Lourido Washington",{"$f":"COUNTIF($P$5:P37,P37)","v":3}]
[null,"Lopez Kelvi","0950748004","Tracarsa",{"$f":"COUNTIF($D$5:D38,D38)","v":2},"T5",null,null,null,null,null,"S12","Cabezal","PAA-2468",18,"Systa","ALQUILADO","Cumbajin Bolivar",{"$f":"COUNTIF($P$5:P38,P38)","v":4}]
[null,"Lourido Washington","1303932311","Systa",{"$f":"COUNTIF($D$5:D39,D39)","v":7},"S11",null,null,null,null,null,"S13","Cabezal","QBA-0217",18,"Systa","ALQUILADO","Bravo Manuel",{"$f":"COUNTIF($P$5:P39,P39)","v":5}]
[null,"Mendez Andres","0908239320","Tracarsa",{"$f":"COUNTIF($D$5:D40,D40)","v":3},"T1",null,null,null,null,null,"S14","Cabezal","PUK-0758",18,"Systa","ALQUILADO","Caiza Freddy",{"$f":"COUNTIF($P$5:P40,P40)","v":6}]
[null,"Mendez Andres",null,"Tracarsa",{"$f":"COUNTIF($D$5:D41,D41)","v":4},"T7",null,null,null,null,null,"S15","Cabezal","CAA-1067",18,"Systa","ALQUILADO","Murillo German",{"$f":"COUNTIF($P$5:P41,P41)","v":7}]
[null,"Mieles Gilberto","0914058862","CD.251",{"$f":"COUNTIF($D$5:D42,D42)","v":11},"CM42",null,null,null,null,null,"S2","Cabezal","PBU-0934 ",18,"Systa","ALQUILADO","Tapia Sergio",{"$f":"COUNTIF($P$5:P42,P42)","v":8}]
[null,"Mora Darwin","0918365263","Tracarsa",{"$f":"COUNTIF($D$5:D43,D43)","v":5},"T3",null,null,null,null,null,"S3","Cabezal","CAA-1603",18,"Systa","ALQUILADO","Rivadeneira Jaime",{"$f":"COUNTIF($P$5:P43,P43)","v":9}]
[null,"Muñoz Walter","0915976468","Telsuprema",{"$f":"COUNTIF($D$5:D44,D44)","v":11},"A18",null,null,null,null,null,"S4","Cabezal","PAA-2323",18,"Systa","ALQUILADO","Pico Milton",{"$f":"COUNTIF($P$5:P44,P44)","v":10}]
[null,"Murillo German","1306228337","Systa",{"$f":"COUNTIF($D$5:D45,D45)","v":8},"S15",null,null,null,null,null,"S5","Cabezal","CAA-1463 ",18,"Systa","ALQUILADO","Guerron Luis",{"$f":"COUNTIF($P$5:P45,P45)","v":11}]
[null,"Narváez Juan","0916585540","CD.251",{"$f":"COUNTIF($D$5:D46,D46)","v":12},"CB34",null,null,null,null,null,"S6","Cabezal","PZO-0295",18,"Systa","ALQUILADO","Pozo José",{"$f":"COUNTIF($P$5:P46,P46)","v":12}]
[null,"Navarro Carlos","0914170279","CD.251",{"$f":"COUNTIF($D$5:D47,D47)","v":13},"CM60",null,null,null,null,null,"S7","Cabezal","CAA-1466",18,"Systa","ALQUILADO","Cuascota Juan",{"$f":"COUNTIF($P$5:P47,P47)","v":13}]
[null,"Nunez John","0911587798","CD.251",{"$f":"COUNTIF($D$5:D48,D48)","v":14},"CB41",null,null,null,null,null,"S8","Cabezal","PZR-0630",18,"Systa","ALQUILADO","Pilacuan Manuel",{"$f":"COUNTIF($P$5:P48,P48)","v":14}]
[null,"Oscar Roman","0401093422","Systa",{"$f":"COUNTIF($D$5:D49,D49)","v":9},"S1",null,null,null,null,null,"S9","Cabezal","GNF-0231",18,"Systa","ALQUILADO","Jimenez Jose",{"$f":"COUNTIF($P$5:P49,P49)","v":15}]
[null,"Parraga Ivan","0914110762","B.Central",{"$f":"COUNTIF($D$5:D50,D50)","v":6},"BC12",null,null,null,null,null,"A1","Cabezal","PXI-0478",18,"Telsuprema","ALQUILADO","Verdezoto Carlos",{"$f":"COUNTIF($P$5:P50,P50)","v":1}]
[null,"Pico Milton","0201446663","Systa",{"$f":"COUNTIF($D$5:D51,D51)","v":10},"S4",null,null,null,null,null,"A10","Cabezal","GMP-0650",18,"Telsuprema","ALQUILADO","Ronquillo José",{"$f":"COUNTIF($P$5:P51,P51)","v":2}]
[null,"Pilacuan Manuel","0400322772","Systa",{"$f":"COUNTIF($D$5:D52,D52)","v":11},"S8",null,null,null,null,null,"A11","Cabezal","GSF-5806",18,"Telsuprema","ALQUILADO","Zambrano Pedro",{"$f":"COUNTIF($P$5:P52,P52)","v":3}]
[null,"Pineida Jairo","1708016421","Systa",{"$f":"COUNTIF($D$5:D53,D53)","v":12},"S10",null,null,null,null,null,"A12","Cabezal","GBN-1744",18,"Telsuprema","ALQUILADO","Teodoro Tapia",{"$f":"COUNTIF($P$5:P53,P53)","v":4}]
[null,"Pozo José","0401283189","Systa",{"$f":"COUNTIF($D$5:D54,D54)","v":13},"S6",null,null,null,null,null,"A13","Cabezal","GMP-0650",18,"Telsuprema","ALQUILADO","Alcivar Oscar",{"$f":"COUNTIF($P$5:P54,P54)","v":5}]
[null,"Rivadeneira Jaime","1715795371","Systa",{"$f":"COUNTIF($D$5:D55,D55)","v":14},"S3",null,null,null,null,null,"A14","Camión","GBN-2864",8,"Telsuprema","ALQUILADO","Rodriguez Roberto",{"$f":"COUNTIF($P$5:P55,P55)","v":6}]
[null,"Rodriguez Roberto","0911566693","Telsuprema",{"$f":"COUNTIF($D$5:D56,D56)","v":12},"A14",null,null,null,null,null,"A15","Camión","GBN-7272",8,"Telsuprema","ALQUILADO","Solis Javier",{"$f":"COUNTIF($P$5:P56,P56)","v":7}]
[null,"Ronquillo Armando","1305862144","Tracarsa",{"$f":"COUNTIF($D$5:D57,D57)","v":6},"T4",null,null,null,null,null,"A16","Cabezal","GBN-2171",18,"Telsuprema","ALQUILADO","Jaramillo Hernán",{"$f":"COUNTIF($P$5:P57,P57)","v":8}]
[null,"Ronquillo Berty","1305862136","Tracarsa",{"$f":"COUNTIF($D$5:D58,D58)","v":7},"T6",null,null,null,null,null,"A17","Cabezal","GBN-5279",8,"Telsuprema","ALQUILADO","Llanos Carlos",{"$f":"COUNTIF($P$5:P58,P58)","v":9}]
[null,"Ronquillo José","1308478849","Telsuprema",{"$f":"COUNTIF($D$5:D59,D59)","v":13},"A10",null,null,null,null,null,"A18","Camión","GQG-0069",8,"Telsuprema","ALQUILADO","Muñoz Walter",{"$f":"COUNTIF($P$5:P59,P59)","v":10}]
[null,"Sacta Juan","0301677001","CD.251",{"$f":"COUNTIF($D$5:D60,D60)","v":15},"CM46",null,null,null,null,null,"A2","Cabezal","GBN-1752",18,"Telsuprema","ALQUILADO","Joel ",{"$f":"COUNTIF($P$5:P60,P60)","v":11}]
[null,"Sánchez Orley","1305323147","CD.251",{"$f":"COUNTIF($D$5:D61,D61)","v":16},"CB46",null,null,null,null,null,"A3","Cabezal","GRY-3558",18,"Telsuprema","ALQUILADO","Abad Washington",{"$f":"COUNTIF($P$5:P61,P61)","v":12}]
[null,"Solis Javier","0914162946","Telsuprema",{"$f":"COUNTIF($D$5:D62,D62)","v":14},"A15",null,null,null,null,null,"A4","Cabezal","GBN-5279",18,"Telsuprema","ALQUILADO","Granda Luis",{"$f":"COUNTIF($P$5:P62,P62)","v":13}]
[null,"Tapia Sergio","0502887458","Systa",{"$f":"COUNTIF($D$5:D63,D63)","v":15},"S2",null,null,null,null,null,"A5","Cabezal","GBN-1713",8,"Telsuprema","ALQUILADO","Zambrano Pedro",{"$f":"COUNTIF($P$5:P63,P63)","v":14}]
[null,"Tapia Telmo","0201179058","B.Central",{"$f":"COUNTIF($D$5:D64,D64)","v":7},"BC95",null,null,null,null,null,"A6","Cabezal","GBN-1752 ",18,"Telsuprema","ALQUILADO","Basurto Joel",{"$f":"COUNTIF($P$5:P64,P64)","v":15}]
[null,"Teodoro Tapia","1203069917","Telsuprema",{"$f":"COUNTIF($D$5:D65,D65)","v":15},"A12",null,null,null,null,null,"A7","Cabezal","GRZ-2847",18,"Telsuprema","ALQUILADO","Alvarado Willian",{"$f":"COUNTIF($P$5:P65,P65)","v":16}]
[null,"Vargas Duber","0920342284","B.Central",{"$f":"COUNTIF($D$5:D66,D66)","v":8},"BC98",null,null,null,null,null,"A8","Cabezal","GBN-2171",18,"Telsuprema","ALQUILADO","Carbo Omar",{"$f":"COUNTIF($P$5:P66,P66)","v":17}]
[null,"Velez Angel","1309537916","CD.251",{"$f":"COUNTIF($D$5:D67,D67)","v":17},"CB39",null,null,null,null,null,"A9","Cabezal","GBN-1753 ",18,"Telsuprema","ALQUILADO","Bazurto Javier",{"$f":"COUNTIF($P$5:P67,P67)","v":18}]
[null,"Vera José","0917984783","CD.251",{"$f":"COUNTIF($D$5:D68,D68)","v":18},"CB37",null,null,null,null,null,"T1","Camión","GRJ-0557",8,"Tracarsa","ALQUILADO","Mendez Andres",{"$f":"COUNTIF($P$5:P68,P68)","v":1}]
[null,"Verdezoto Carlos","1709061954","Telsuprema",{"$f":"COUNTIF($D$5:D69,D69)","v":16},"A1",null,null,null,null,null,"T2","Camión","GBO-2192",6,"Tracarsa","ALQUILADO","Encarnacion Chavez",{"$f":"COUNTIF($P$5:P69,P69)","v":2}]
[null,"Villavicencio Enrico","0909943888","CD.251",{"$f":"COUNTIF($D$5:D70,D70)","v":19},"CM37",null,null,null,null,null,"T3","Camión","GBO-1004",12,"Tracarsa","ALQUILADO","Mora Darwin",{"$f":"COUNTIF($P$5:P70,P70)","v":3}]
[null,"Yagual Jorge","0909787889","CD.251",{"$f":"COUNTIF($D$5:D71,D71)","v":20},"CB36",null,null,null,null,null,"T4","Camión","GBN-5501",12,"Tracarsa","ALQUILADO","Ronquillo Armando",{"$f":"COUNTIF($P$5:P71,P71)","v":4}]
[null,"Zambrano Pedro","0912014552","Telsuprema",{"$f":"COUNTIF($D$5:D72,D72)","v":17},"A5",null,null,null,null,null,"T5","Camión","GBO-2010",6,"Tracarsa","ALQUILADO","Lopez Kelvi",{"$f":"COUNTIF($P$5:P72,P72)","v":5}]
[null,"Zambrano Pedro","0919689696","Telsuprema",{"$f":"COUNTIF($D$5:D73,D73)","v":18},"A11",null,null,null,null,null,"T6","Camión","GBN-8796",6,"Tracarsa","ALQUILADO","Ronquillo Berty",{"$f":"COUNTIF($P$5:P73,P73)","v":6}]
[null,"Zambrano William","1201886874","CD.251",{"$f":"COUNTIF($D$5:D74,D74)","v":21},"CB31",null,null,null,null,null,"T7","Camión","GBN-8627",6,"Tracarsa","ALQUILADO","Mendez Andres",{"$f":"COUNTIF($P$5:P74,P74)","v":7}]